bitfinex-derivatives/quotes_SOLF0:USTF0_20240823
["timestamp","ask_amount","ask_price","bid_price","bid_amount"]
[1724385856145,3.4543,144.72,144.7,5.45390777]
[1724385856744,3.4547,144.7,144.61,36.5133]
[1724385856940,9.39565,144.76,144.69,5.40083]
[1724385856941,2.6687,144.75,144.69,5.40083]
[1724385857141,2.6687,144.75,144.71,0.05322094]
[1724385857142,0.05120962,144.73,144.71,0.05322094]
[1724385858052,3.4542,144.72,144.71,0.05322094]
[1724385861543,0.05120962,144.73,144.68,7.4]
[1724385861838,3.52668682,144.72,144.68,5.40013]
[1724385862245,3.31069962,144.73,144.68,5.40013]
[1724385862645,3.31069962,144.73,144.69,0.05250769]
[1724385863345,3.4547,144.7,144.69,0.05250769]
[1724385863549,3.4547,144.7,144.69,7.45250769]
[1724385864247,3.4545,144.71,144.69,7.45250769]
[1724385864451,3.4545,144.71,144.7,7.4]
[1724385868356,3.4547,144.7,144.69,7.45250769]
[1724385873860,3.4547,144.7,144.69,6.15290769]
[1724385875656,3.4547,144.7,144.69,5.45306769]
[1724385877663,3.4546,144.71,144.69,5.45306769]
[1724385878163,3.4546,144.71,144.7,7.4]
[1724385881165,3.4546,144.71,144.7,7.00019]
[1724385883961,3.4546,144.71,144.69,7.4]
[1724385886779,3.4547,144.7,144.69,7.4]
[1724385890280,3.4545,144.71,144.69,7.4]
[1724385891881,3.4545,144.71,144.69,5.8008]
[1724385892778,0.05120962,144.73,144.68,7.42605581]
[1724385894280,3.4543,144.72,144.71,7.4]
[1724385897377,0.05120962,144.73,144.68,7.42605581]
[1724385897580,1.97297419,144.68,144.66,7.4]
[1724385897783,7.4,144.73,144.63,3.46945522]
[1724385897984,3.4551,144.69,144.66,7.4]
[1724385898685,3.50540915,144.69,144.66,7.4]
[1724385899285,3.50540915,144.69,144.66,10.8556]
[1724385899879,3.50540915,144.69,144.66,3.4556]
[1724385900084,3.50540915,144.69,144.66,8.88234]
[1724385900378,3.4553,144.68,144.66,7.4]
[1724385901486,3.4553,144.68,144.66,10.8556]
[1724385903684,0.05030915,144.69,144.61,46.8920452]
[1724385903876,0.05030915,144.69,144.62,1.92954]
[1724385904381,3.4558,144.66,144.63,3.4562]
[1724385904583,3.50486653,144.66,144.64,7.4]
[1724385906890,3.50486653,144.66,144.63,3.4562]
[1724385907186,3.50486653,144.66,144.64,7.4]
[1724385909591,3.4559,144.65,144.64,7.4]
[1724385909790,0.04906653,144.66,144.61,46.8920452]
[1724385910090,0.04906653,144.66,144.61,3.4568]
[1724385910684,0.04906653,144.66,144.61,1.45593]
[1724385910685,3.4563,144.64,144.61,1.45593]
[1724385911489,3.4563,144.64,144.62,7.4]
[1724385912388,3.4563,144.64,144.62,10.8566]
[1724385912991,3.4563,144.64,144.62,7.4]
[1724385917396,1.99931,144.62,144.61,10.8567]
[1724385917595,0.04989119,144.63,144.61,8.85739]
[1724385918589,0.04989119,144.63,144.62,3.4566]
[1724385922088,0.04989119,144.63,144.61,7.4]
[1724385923404,0.04989119,144.63,144.62,3.4566]
[1724385930100,35.04,144.74,144.61,37.0]
[1724385930303,27.64,144.74,144.7,7.4]
[1724385930900,27.64,144.74,144.71,0.04371799]
[1724385930901,0.04805126,144.73,144.71,0.04371799]
[1724385931507,3.4542,144.72,144.71,0.04371799]
[1724385932695,0.04805126,144.73,144.71,0.04371799]
[1724385933995,3.4542,144.72,144.71,0.04371799]
[1724385934203,0.02100201,144.71,144.67,3.4553]
[1724385934402,0.04805126,144.73,144.67,10.83429799]
[1724385934603,3.4546,144.71,144.67,10.83429799]
[1724385935902,0.04805126,144.73,144.67,7.4]
[1724385936103,0.04805126,144.73,144.64,3.54100152]
[1724385936301,35.04,144.74,144.67,10.8554]
[1724385936302,3.5046266,144.7,144.67,10.8554]
[1724385938204,0.0497266,144.7,144.62,53.22161398]
[1724385938410,1.99858,144.62,144.6,7.4]
[1724385938598,1.99858,144.6,144.56,3.9701]
[1724385938797,0.04963882,144.62,144.59,6.85889]
[1724385940609,0.04963882,144.62,144.61,7.4]
[1724385942311,0.04963882,144.62,144.6,3.457]
[1724385942613,0.04963882,144.62,144.6,10.857]
[1724385943011,0.04963882,144.62,144.6,8.85576]
[1724385944408,0.04963882,144.62,144.61,10.8568]
[1724385949012,3.456,144.65,144.62,3.4565]
[1724385949414,7.4,144.69,144.63,7.4]
[1724385949915,3.456,144.65,144.63,7.4]
[1724385950113,3.50742593,144.65,144.63,7.45268792]
[1724385950617,3.50742593,144.65,144.63,0.05268792]
[1724385950812,0.05142593,144.65,144.63,7.45268792]
[1724385952417,0.05142593,144.65,144.63,10.90898792]
[1724385952617,3.50732593,144.65,144.63,7.45268792]
[1724385958325,3.50732593,144.65,144.63,0.05268792]
[1724385959618,1.94842208,144.63,144.62,3.4565]
[1724385959812,3.4561,144.64,144.62,1.50807791]
[1724385960215,3.4561,144.64,144.61,10.8567]
[1724385960720,3.4561,144.64,144.61,8.8574]
[1724385962425,3.4564,144.63,144.61,8.8574]
[1724385962627,3.4564,144.63,144.61,5.4007]
[1724385963722,3.4564,144.63,144.61,8.8575]
[1724385964523,0.05142593,144.65,144.58,3.39109854]
[1724385964728,3.50496267,144.63,144.56,3.9701]
[1724385964930,3.50496267,144.63,144.61,7.4]
[1724385965433,0.04836267,144.63,144.61,7.4]
[1724385965828,0.04836267,144.63,144.61,8.85739]
[1724385973535,0.04836267,144.63,144.62,3.4566]
[1724385974642,0.04836267,144.63,144.61,8.85739]
[1724385975738,1.99931,144.61,144.6,10.857]
[1724385975935,0.04836267,144.63,144.6,7.4]
[1724385976337,3.4568,144.62,144.6,7.4]
[1724385979638,3.4568,144.62,144.6,10.857]
[1724385980233,0.04836267,144.63,144.6,7.4]
[1724385980942,3.4568,144.62,144.6,7.4]
[1724385982042,1.99945,144.6,144.58,3.4575]
[1724385982346,0.04836267,144.63,144.58,8.85805]
[1724385982741,3.457,144.61,144.58,8.85805]
[1724385985442,3.4572,144.6,144.57,3.4576]
[1724385985645,3.50754107,144.6,144.57,8.85816]
[1724385986152,0.05034107,144.6,144.56,3.458]
[1724385986452,0.54206,144.56,144.55,10.78037496]
[1724385986746,0.04732742,144.57,144.55,7.4]
[1724385987142,0.04732742,144.57,144.55,10.93791873]
[1724385988047,0.04732742,144.57,144.56,7.4]
[1724385988349,0.04732742,144.57,144.56,10.858]
[1724386003056,9.39565,144.65,144.56,7.4]
[1724386003359,7.4,144.66,144.59,7.4]
[1724386003565,3.4566,144.62,144.61,7.4]
[1724386007159,3.4566,144.62,144.6,10.90735279]
[1724386008165,3.4566,144.62,144.6,7.45025279]
[1724386010463,3.4566,144.62,144.6,10.90725279]
[1724386010966,3.50017471,144.63,144.6,10.90725279]
[1724386018568,3.50017471,144.63,144.6,8.90611279]
[1724386024375,3.50017471,144.63,144.6,3.457]
[1724386024578,3.50017471,144.63,144.6,10.857]
[1724386032176,3.50017471,144.63,144.6,7.4]
[1724386033385,3.50017471,144.63,144.6,10.8569]
[1724386033680,0.04367471,144.63,144.62,7.4]
[1724386033871,0.04367471,144.63,144.62,10.8566]
[1724386038581,75.42835506,144.68,144.64,3.4561]
[1724386038779,75.42835506,144.68,144.66,7.4]
[1724386038982,3.4554,144.67,144.66,7.4]
[1724386042285,3.4556,144.66,144.65,0.04387344]
[1724386045484,75.47503103,144.68,144.63,3.4562]
[1724386045485,3.4559,144.65,144.63,3.4562]
[1724386045783,3.4559,144.65,144.62,10.8565]
[1724386046384,3.50418489,144.65,144.62,10.8565]
[1724386050393,3.50418489,144.65,144.62,8.83718]
[1724386060005,3.50418489,144.65,144.62,6.83774]
[1724386062509,3.50418489,144.65,144.62,1.45705]
[1724386062711,3.50418489,144.65,144.63,7.4]
[1724386067213,3.50418489,144.65,144.63,10.8563]
[1724386068816,3.50418489,144.65,144.62,3.4565]
[1724386069215,3.50418489,144.65,144.62,10.8565]
[1724386070111,3.4561,144.64,144.62,3.4565]
[1724386074113,3.4561,144.64,144.62,1.45733]
[1724386075210,3.50428489,144.65,144.62,1.45733]
[1724386079917,3.4561,144.64,144.61,10.8567]
[1724386080222,1.99931,144.61,144.59,7.4]
[1724386080420,0.04578117,144.61,144.6,3.457]
[1724386086224,0.04578117,144.61,144.6,10.857]
[1724386090629,0.04578117,144.61,144.6,8.85714]
[1724386103838,3.4562,144.64,144.61,3.4567]
[1724386104143,3.4562,144.64,144.63,7.4]
[1724386108054,3.50135512,144.65,144.63,7.4]
[1724386109149,3.50135512,144.65,144.62,3.50238117]
[1724386109344,3.50135512,144.65,144.63,7.4]
[1724386119050,3.50135512,144.65,144.63,10.8564]
[1724386119656,3.50135512,144.65,144.63,3.4564]
[1724386119955,3.50135512,144.65,144.63,10.8564]
[1724386127555,0.04535512,144.65,144.64,10.8561]
[1724386129969,3.50125512,144.65,144.63,3.4563]
[1724386130558,0.04535512,144.65,144.63,3.4563]
[1724386140272,0.04535512,144.65,144.63,10.8563]
[1724386144272,0.04535512,144.65,144.63,8.85713]
[1724386158585,3.50125512,144.65,144.63,1.45713]
[1724386158783,0.54232,144.63,144.62,7.44578117]
[1724386159001,3.50125512,144.65,144.62,5.44633116]
[1724386159183,3.50125512,144.65,144.62,8.90273116]
[1724386159786,3.50125512,144.65,144.62,5.44633116]
[1724386161278,3.50125512,144.65,144.63,3.4563]
[1724386164579,3.50125512,144.65,144.62,3.4564]
[1724386164580,3.4562,144.64,144.62,3.4564]
[1724386164793,1.99146,144.62,144.58,100.30388234]
[1724386164980,0.04917477,144.61,144.6,5.40854]
[1724386166378,0.04917477,144.61,144.6,8.86564]
[1724386169391,0.04917477,144.61,144.6,6.86633]
[1724386169689,0.04917477,144.61,144.6,10.8571]
[1724386171795,1.9993,144.6,144.59,3.4572]
[1724386172095,0.04917477,144.61,144.59,8.8579]
[1724386172597,0.04917477,144.61,144.59,1.4579]
[1724386172798,0.54141,144.59,144.58,107.70388234]
[1724386173002,0.04917477,144.61,144.58,107.16247234]
[1724386173392,3.50607477,144.61,144.58,105.16345233]
[1724386174397,3.50607477,144.61,144.59,3.4573]
[1724386174597,3.50607477,144.61,144.57,1.3809]
[1724386174797,3.50607477,144.61,144.58,7.4]
[1724386176298,3.50607477,144.61,144.58,10.8574]
[1724386181404,3.50607477,144.61,144.59,3.4573]
[1724386181604,3.50607477,144.61,144.59,10.8573]
[1724386185606,3.50607477,144.61,144.59,7.4]
[1724386186913,0.04917477,144.61,144.59,10.8572]
[1724386187410,0.04917477,144.61,144.6,10.8571]
[1724386203117,3.4558,144.66,144.63,3.4563]
[1724386203425,3.4558,144.66,144.64,7.4]
[1724386204011,3.50617345,144.66,144.64,7.44917477]
[1724386207225,3.50617345,144.66,144.64,10.90527477]
[1724386212725,3.50617345,144.66,144.64,0.04917477]
[1724386215330,3.4559,144.65,144.64,0.04917477]
[1724386224738,1.45098523,144.64,144.59,7.4]
[1724386224938,3.4559,144.65,144.57,2.6753]
[1724386225126,3.4559,144.65,144.61,10.8566]
[1724386225636,0.0523853,144.64,144.61,10.8566]
[1724386226136,3.5085853,144.64,144.61,10.8566]
[1724386228240,1.99943,144.61,144.57,2.6753]
[1724386228534,0.04799441,144.6,144.59,5.40057]
[1724386228735,0.05214117,144.61,144.59,8.85767]
[1724386228931,0.04990062,144.61,144.59,8.85767]
[1724386238941,2.0,144.59,144.58,7.4]
[1724386239143,0.04990062,144.61,144.58,5.4]
[1724386239450,4.00043,144.58,144.57,7.4]
[1724386240943,4.00043,144.58,144.55,3.42979423]
[1724386241246,0.04923853,144.58,144.56,1.4004]
[1724386241444,0.04923853,144.58,144.56,4.91313968]
[1724386241647,0.04923853,144.58,144.56,1.4004]
[1724386242339,0.04923853,144.58,144.57,3.4578]
[1724386251857,0.04923853,144.58,144.57,7.4]
[1724386252349,0.04923853,144.58,144.57,10.8578]
[1724386257557,0.04923853,144.58,144.57,3.4578]
[1724386257759,0.04923853,144.58,144.57,10.8578]
[1724386260361,0.04923853,144.58,144.57,3.4578]
[1724386260552,0.04923853,144.58,144.57,10.8578]
[1724386264467,0.04923853,144.58,144.57,7.4]
[1724386264768,0.04923853,144.58,144.57,5.39944]
[1724386269375,1.99917,144.57,144.55,3.4582]
[1724386269576,0.04923853,144.58,144.55,1.45903]
[1724386270270,3.50683853,144.58,144.55,1.45903]
[1724386270675,0.54027,144.55,144.54,7.4]
[1724386270879,3.50683853,144.58,144.54,5.4007]
[1724386271282,3.50683853,144.58,144.55,3.4582]
[1724386275884,3.4578,144.57,144.55,3.4582]
[1724386279281,3.50693853,144.58,144.55,3.4582]
[1724386279991,3.50693853,144.58,144.56,7.4]
[1724386282184,3.4584,144.55,144.52,6.1649]
[1724386282487,0.04894404,144.55,144.54,7.4]
[1724386283386,0.04894404,144.55,144.54,10.8585]
[1724386284485,0.04894404,144.55,144.54,3.4585]
[1724386284686,0.04894404,144.55,144.54,10.8585]
[1724386286087,0.04894404,144.55,144.54,8.86842]
[1724386289087,0.04894404,144.55,144.54,6.86912]
[1724386289892,0.04894404,144.55,144.54,10.32762]
[1724386290886,0.04894404,144.55,144.53,10.8586]
[1724386292780,3.4586,144.54,144.48,2.7379]
[1724386292982,0.04894404,144.55,144.51,7.4]
[1724386293183,0.04894404,144.55,144.51,3.39978]
[1724386294286,3.50734404,144.55,144.52,3.459]
[1724386295489,3.50734404,144.55,144.52,10.859]
[1724386298589,0.04894404,144.55,144.48,114.71641664]
[1724386298790,0.04894404,144.55,144.52,7.4]
[1724386299004,0.04894404,144.55,144.53,7.4]
[1724386299192,0.04894404,144.55,144.53,10.8586]
[1724386301000,0.04894404,144.55,144.54,3.4585]
[1724386306089,0.04894404,144.55,144.48,114.71641664]
[1724386306090,3.50724404,144.55,144.48,114.71641664]
[1724386306294,3.50724404,144.55,144.51,7.4]
[1724386307199,3.50724404,144.55,144.52,3.39581]
[1724386310203,3.50724404,144.55,144.52,10.79581]
[1724386316713,0.04894404,144.55,144.53,3.4587]
[1724386316904,0.04894404,144.55,144.54,7.4]
[1724386322118,0.04894404,144.55,144.54,10.8585]
[1724386325117,0.04894404,144.55,144.54,7.4]
[1724386329928,3.50724404,144.55,144.53,3.4586]
[1724386333123,3.50724404,144.55,144.53,1.45945]
[1724386333325,0.53958,144.53,144.52,7.4]
[1724386333624,0.04894404,144.55,144.51,7.4]
[1724386333826,0.0482468,144.54,144.51,7.4]
[1724386334030,0.0482468,144.54,144.52,3.4589]
[1724386335126,0.0482468,144.54,144.53,7.4]
[1724386340428,0.0482468,144.54,144.52,3.4589]
[1724386340634,3.5068468,144.54,144.51,10.8591]
[1724386340835,3.5068468,144.54,144.51,3.4591]
[1724386341036,3.5068468,144.54,144.51,1.45975]
[1724386341230,3.4589,144.53,144.49,3.4595]
[1724386341435,3.4589,144.53,144.49,7.4]
[1724386341638,3.4589,144.53,144.49,3.40004]
[1724386341837,3.4589,144.53,144.5,7.4]
[1724386342225,3.4589,144.53,144.52,7.4]
[1724386344132,0.0482468,144.54,144.52,7.4]
[1724386344133,3.5068468,144.54,144.52,7.4]
[1724386347236,3.5068468,144.54,144.52,10.859]
[1724386348337,3.5068468,144.54,144.51,3.4591]
[1724386348536,3.5068468,144.54,144.51,10.8591]
[1724386348938,3.5068468,144.54,144.52,3.459]
[1724386351240,3.5068468,144.54,144.51,10.8591]
[1724386356641,3.5068468,144.54,144.51,7.4]
[1724386356642,3.4589,144.53,144.51,7.4]
[1724386357846,3.4589,144.53,144.51,5.89962]
[1724386360051,3.4589,144.53,144.51,7.4]
[1724386363857,3.4589,144.53,144.51,6.90025]
[1724386364256,3.4589,144.53,144.5,10.8594]
[1724386365459,135.80194963,144.75,144.52,37.0]
[1724386365660,7.4,144.65,144.54,29.6]
[1724386365860,3.42628793,144.64,144.58,7.4]
[1724386366047,9.47096,144.65,144.58,7.33713]
[1724386366253,9.39537,144.65,144.59,7.4]
[1724386366550,3.50760813,144.63,144.61,0.04433916]
[1724386367858,0.05110813,144.63,144.61,0.04433916]
[1724386369359,3.50750813,144.63,144.61,0.04433916]
[1724386374355,3.4566,144.62,144.61,0.04433916]
[1724386377556,5.44809084,144.61,144.58,3.4575]
[1724386377756,3.4569,144.61,144.58,1.46630916]
[1724386379860,3.4566,144.62,144.59,3.4573]
[1724386380064,3.4566,144.62,144.59,10.8573]
[1724386382268,3.50750813,144.63,144.6,10.8569]
[1724386382462,3.50673387,144.63,144.6,10.8569]
[1724386384569,3.4566,144.62,144.6,10.8569]
[1724386388068,3.4566,144.62,144.59,10.8573]
[1724386388260,3.50476912,144.62,144.59,10.8573]
[1724386388866,0.04816912,144.62,144.6,3.457]
[1724386390269,3.50486912,144.62,144.6,3.457]
[1724386394771,0.04816912,144.62,144.6,3.457]
[1724386399682,0.04816912,144.62,144.61,10.8568]
[1724386406384,3.4553,144.68,144.64,3.456]
[1724386406586,3.4553,144.68,144.64,10.856]
[1724386407181,0.05082229,144.67,144.65,0.05093124]
[1724386411691,31.17626669,144.81,144.7,3.4545]
[1724386411891,3.28764,144.76,144.7,7.4]
[1724386412094,1.2922,144.76,144.7,7.4]
[1724386412391,1.2922,144.76,144.71,3.4544]
[1724386412789,0.0456253,144.74,144.72,0.05264561]
[1724386413387,3.4993253,144.74,144.72,0.05264561]
[1724386416094,3.454,144.73,144.72,0.05264561]
[1724386424995,0.34755439,144.72,144.7,10.8546]
[1724386425199,3.454,144.73,144.7,10.50704561]
[1724386425995,3.454,144.73,144.7,10.55386658]
[1724386430307,3.454,144.73,144.7,7.09926658]
[1724386430903,3.454,144.73,144.7,10.55376658]
[1724386434308,3.454,144.73,144.7,8.95438658]
[1724386434508,3.4543,144.72,144.7,8.95438658]
[1724386434706,3.4543,144.72,144.7,5.49988658]
[1724386436411,3.4543,144.72,144.7,3.50071658]
[1724386437211,3.4543,144.72,144.7,1.50154658]
[1724386439208,3.4544,144.71,144.7,0.04682097]
[1724386439510,1.95220903,144.7,144.68,7.4]
[1724386439712,3.4544,144.71,144.68,3.44889096]
[1724386440107,143.20194963,144.75,144.68,3.44889096]
[1724386440304,145.19724963,144.75,144.68,3.44889096]
[1724386440501,0.05316853,144.73,144.68,3.44889096]
[1724386441307,3.4546,144.71,144.68,3.44889096]
[1724386443310,3.4546,144.71,144.7,7.4]
[1724386449221,3.4544,144.72,144.7,7.4]
[1724386449416,3.4544,144.72,144.68,3.4551]
[1724386449417,3.4544,144.72,144.71,7.4]
[1724386453223,3.50726853,144.73,144.71,7.4]
[1724386458625,3.4542,144.72,144.71,7.4]
[1724386463945,3.4542,144.72,144.71,5.40042]
[1724386471944,3.4542,144.72,144.71,3.40139]
[1724386477346,3.4542,144.72,144.71,1.40236]
[1724386478551,5.45363,144.71,144.69,7.4]
[1724386478750,3.4546,144.71,144.69,5.40097]
[1724386482253,0.05316853,144.73,144.69,5.40097]
[1724386482254,3.4547,144.7,144.69,5.40097]
[1724386483743,3.4546,144.71,144.69,5.40097]
[1724386485551,3.4546,144.71,144.7,6.99994]
[1724386486148,3.4546,144.71,144.7,5.4008]
[1724386492357,3.4543,144.72,144.7,5.4008]
[1724386494558,3.4543,144.72,144.7,8.83998762]
[1724386494759,3.50716853,144.73,144.7,12.29458762]
[1724386495058,3.50716853,144.73,144.72,7.4]
[1724386496752,0.05316853,144.73,144.72,7.4]
[1724386498362,3.50716853,144.73,144.72,7.4]
[1724386498657,1.99572,144.8,144.72,7.4]
[1724386498958,3.4534,144.76,144.75,7.4]
[1724386499958,3.4535,144.75,144.74,7.4482426]
[1724386500158,3.4535,144.75,144.74,0.0482426]
[1724386500559,3.454,144.73,144.71,7.4]
[1724386501152,3.454,144.73,144.72,7.4]
[1724386501358,3.4538,144.74,144.72,7.4]
[1724386501661,3.50559624,144.74,144.72,7.4]
[1724386503067,0.05179624,144.74,144.6,6.9142]
[1724386503260,2.01585,144.68,144.61,29.6]
[1724386503564,0.0447974,144.68,144.67,8.83935]
[1724386504258,3.4546,144.71,144.68,3.4552]
[1724386504458,3.4544,144.72,144.7,7.4]
[1724386504853,3.4544,144.71,144.7,7.4]
[1724386505058,3.4544,144.71,144.7,5.40348]
[1724386507973,3.4547,144.7,144.69,0.04534283]
[1724386508268,3.4547,144.7,144.69,7.44534283]
[1724386509364,3.4552,144.68,144.63,3.9933]
[1724386509569,3.4552,144.68,144.67,5.44644283]
[1724386510462,3.4554,144.67,144.64,3.456]
[1724386510665,3.4554,144.67,144.66,114.02100003]
[1724386510865,3.4554,144.67,144.66,113.12162002]
[1724386511967,3.4554,144.67,144.66,105.72162002]
[1724386512269,3.4554,144.67,144.66,7.4]
[1724386515172,5.45501,144.66,144.64,3.4561]
[1724386515466,3.4557,144.66,144.65,7.4]
[1724386515669,3.4554,144.67,144.65,1.40246]
[1724386515872,3.4554,144.67,144.64,3.456]
[1724386518273,3.4554,144.67,144.66,7.4]
[1724386519969,3.4554,144.67,144.64,3.456]
[1724386520175,3.4554,144.67,144.66,7.4]
[1724386532580,3.4554,144.67,144.66,7.20035]
[1724386534370,3.4554,144.67,144.66,5.401]
[1724386543779,3.4554,144.67,144.66,3.40221]
[1724386545077,3.4554,144.67,144.66,1.40318]
[1724386545477,3.456,144.65,144.62,3.4565]
[1724386545780,3.50089809,144.65,144.64,7.4]
[1724386545973,3.50089809,144.65,144.64,7.00022]
[1724386546373,0.04489809,144.65,144.64,7.00022]
[1724386546982,3.4558,144.66,144.64,7.00022]
[1724386547286,3.4558,144.66,144.65,7.4]
[1724386560088,3.8796,144.7,144.65,7.4]
[1724386560089,3.4549,144.7,144.65,7.4]
[1724386560293,3.4549,144.7,144.69,7.4]
[1724386560490,5.8732,144.76,144.69,37.0]
[1724386560692,5.8732,144.76,144.72,7.4]
[1724386560693,3.454,144.73,144.72,7.4]
[1724386576793,3.4542,144.72,144.71,7.44831225]
[1724386584399,3.4542,144.72,144.71,0.04831225]
[1724386584607,3.4542,144.72,144.71,7.44831225]
[1724386585804,3.4542,144.72,144.71,5.84892225]
[1724386616733,3.4541,144.73,144.71,5.84892225]
[1724386617034,148.26903233,144.78,144.72,7.4]
[1724386617236,3.4535,144.76,144.75,7.4]
[1724386617437,148.26903233,144.78,144.75,7.4]
[1724386617739,148.26903233,144.78,144.77,7.4]
[1724386618737,151.72183233,144.78,144.77,7.4]
[1724386623844,3.4528,144.78,144.77,7.4]
[1724386625642,0.04963078,144.79,144.77,7.4]
[1724386625837,0.04963078,144.79,144.78,7.4]
[1724386626038,30.371,144.84,144.78,7.4]
[1724386626242,30.371,144.84,144.82,7.4]
[1724386626444,2.751,144.84,144.83,7.4]
[1724386626635,3.4513,144.84,144.83,7.4]
[1724386627544,0.04418775,144.85,144.83,7.4]
[1724386628446,3.4513,144.84,144.83,7.4]
[1724386628640,0.04418775,144.85,144.83,7.4]
[1724386629436,1.3502,144.89,144.83,37.0]
[1724386629747,1.3502,144.89,144.88,7.4]
[1724386630242,4.8004,144.89,144.88,7.4]
[1724386630437,1.3502,144.89,144.87,7.45144731]
[1724386630639,3.4506,144.87,144.86,7.4]
[1724386631146,1.3502,144.89,144.83,7.4]
[1724386631147,8.7502,144.89,144.83,7.4]
[1724386631450,3.4513,144.84,144.83,7.4]
[1724386631640,0.04888685,144.85,144.82,0.0452987]
[1724386631841,0.04888685,144.85,144.82,7.4452987]
[1724386632140,3.4516,144.83,144.82,7.4452987]
[1724386638650,3.4523,144.8,144.75,3.4533]
[1724386638852,3.4523,144.8,144.79,5.4440087]
[1724386639045,1.99942,144.79,144.78,7.4]
[1724386639350,3.51034751,144.84,144.78,3.40009999]
[1724386639548,3.51034751,144.84,144.74,8.27917596]
[1724386639549,3.4527,144.79,144.74,8.27917596]
[1724386639748,3.4527,144.79,144.78,7.4]
[1724386640850,3.4531,144.77,144.75,0.04388312]
[1724386641050,0.05102272,144.8,144.78,7.10049]
[1724386641250,0.05102272,144.8,144.78,5.40166]
[1724386641449,3.4525,144.79,144.78,5.40166]
[1724386648260,1.99652,144.85,144.78,5.40166]
[1724386648463,1.99652,144.89,144.84,7.4]
[1724386648761,3.4522,144.81,144.76,29.6]
[1724386648952,7.4,144.88,144.8,6.29998]
[1724386649168,7.4,144.88,144.8,5.40042]
[1724386649354,3.452,144.82,144.8,5.40042]
[1724386649654,3.452,144.82,144.8,5.4527304]
[1724386653556,3.4521,144.81,144.8,3.4535604]
[1724386653862,3.4521,144.81,144.8,7.4523104]
[1724386654064,3.4521,144.81,144.8,0.0523104]
[1724386654265,3.4521,144.81,144.8,7.4523104]
[1724386657667,3.4521,144.81,144.8,0.0523104]
[1724386657863,3.4521,144.81,144.8,7.4523104]
[1724386658768,3.4528,144.78,144.75,1.2857]
[1724386658965,3.4528,144.78,144.77,5.4530004]
[1724386659266,3.4528,144.78,144.75,1.2857]
[1724386659464,3.4528,144.78,144.77,7.4]
[1724386661064,5.45244,144.77,144.76,7.45168742]
[1724386661260,0.04468113,144.79,144.71,4.9097414]
[1724386661470,3.52394595,144.8,144.75,7.4]
[1724386661666,3.4534,144.76,144.75,7.4]
[1724386662067,3.4534,144.76,144.75,3.45235742]
[1724386662866,4.54393259,144.75,144.74,0.04780567]
[1724386663162,3.4534,144.76,144.74,2.90387307]
[1724386667072,0.05243946,144.77,144.74,5.40738]
[1724386667574,3.4533,144.76,144.74,5.40738]
[1724386673380,3.50543946,144.77,144.74,8.86098]
[1724386673580,0.05243946,144.77,144.74,5.40738]
[1724386674274,3.4533,144.76,144.74,5.40738]
[1724386678280,3.50543946,144.77,144.74,8.86108]
[1724386678477,3.50543946,144.77,144.76,7.4]
[1724386680474,0.05243946,144.77,144.76,7.4]
[1724386683373,3.50543946,144.77,144.76,7.4]
[1724386688383,3.50543946,144.77,144.76,5.40014]
[1724386690286,3.50543946,144.77,144.73,3.4539]
[1724386690488,0.05243946,144.77,144.71,1.3782]
[1724386690788,0.05243946,144.77,144.74,7.4]
[1724386690982,3.4534,144.76,144.74,7.4]
[1724386695099,3.50553946,144.77,144.75,7.4]
[1724386696200,3.4533,144.76,144.75,7.4]
[1724386710907,1.99903,144.75,144.71,1.3782]
[1724386711214,0.04530664,144.73,144.71,6.77917]
[1724386712105,0.04530664,144.73,144.7,3.4547]
[1724386712106,1.99931,144.71,144.7,3.4547]
[1724386712303,0.04530664,144.73,144.7,6.85529]
[1724386713812,3.49940664,144.73,144.7,6.85529]